bitfinex/quotes_ETHUSD_20250602
["timestamp","ask_amount","ask_price","bid_price","bid_amount"]
[1748874768333,0.04939167,2531.1,2530.7,4.59]
[1748874768693,3.95147587,2530.7,2530.6,0.6]
[1748874768831,3.95163202,2530.6,2530.5,1.387]
[1748874769630,8.72573602,2530.6,2529.9,3.95270715]
[1748874769862,12.00127861,2530.5,2530.0,9.92856181]
[1748874770066,8.38582337,2530.5,2530.0,5.976]
[1748874770273,3.95203097,2530.4,2529.9,3.95261109]
[1748874770501,3.95256916,2530.0,2529.2,0.0201]
[1748874770699,8.72573602,2529.8,2529.5,1.387]
[1748874770853,0.04941852,2529.7,2529.5,1.387]
[1748874771449,3.95285864,2529.9,2529.5,1.387]
[1748874771816,0.7783,2530.3,2529.8,3.9527638]
[1748874771951,12.78146286,2530.6,2530.0,3.95241375]
[1748874772281,4.00127277,2530.5,2530.0,3.95241375]
[1748874772434,4.00121724,2530.5,2530.0,3.95241375]
[1748874772861,0.04940992,2530.5,2530.1,3.95233216]
[1748874773034,0.04940992,2530.5,2529.9,8.5406652]
[1748874773251,3.95194584,2530.4,2529.9,8.5406652]
[1748874773468,0.04940422,2530.3,2529.9,8.5406652]
[1748874773681,0.04940422,2530.3,2530.0,3.95254568]
[1748874773887,3.95208964,2530.4,2529.8,3.952789]
[1748874774053,3.95208964,2530.4,2530.0,5.975]
[1748874774054,4.00159988,2530.3,2530.0,5.975]
[1748874774675,3.95196332,2530.4,2530.0,5.975]
[1748874774874,3.95212381,2530.3,2530.0,5.975]
[1748874775088,0.04940862,2530.2,2530.0,5.975]
[1748874775270,0.04940735,2530.4,2530.0,9.92752956]
[1748874775470,0.04940735,2530.4,2530.0,9.92746258]
[1748874775684,0.04940735,2530.4,2530.0,5.975]
[1748874776109,3.95220651,2530.3,2530.0,5.975]
[1748874776268,0.04940559,2530.2,2529.6,3.97326065]
[1748874776472,3.95249565,2530.1,2529.7,5.975]
[1748874776696,0.04941197,2530.0,2529.7,5.975]
[1748874776878,0.04941197,2530.0,2529.7,9.92795279]
[1748874777082,0.04941196,2530.1,2529.7,1.387]
[1748874777254,0.04941196,2530.1,2529.8,4.588]
[1748874777456,4.00192411,2530.1,2529.8,4.588]
[1748874777652,4.00191151,2530.1,2529.9,4.588]
[1748874777994,5.27463493,2530.1,2529.9,5.975]
[1748874778175,4.00183034,2530.1,2529.9,5.975]
[1748874778349,4.00183034,2530.1,2529.9,1.387]
[1748874778550,4.00183034,2530.1,2529.9,5.974]
[1748874778756,11.95213563,2530.3,2529.9,5.974]
[1748874778964,4.00166482,2530.2,2529.9,5.974]
[1748874779169,3.9524278,2530.1,2529.9,5.974]
[1748874779369,4.00197969,2530.0,2529.9,5.974]
[1748874779564,8.85301053,2530.0,2529.4,1.387]
[1748874779787,12.6787293,2529.8,2529.5,4.587]
[1748874779982,4.00247997,2529.7,2529.5,4.587]
[1748874780185,0.04941774,2529.7,2529.5,4.587]
[1748874781382,13.50672882,2530.4,2529.9,3.95265129]
[1748874781586,6.19234213,2530.3,2530.0,4.587]
[1748874781986,11.95241294,2530.1,2530.0,4.587]
[1748874782264,3.95251001,2530.1,2529.9,5.969]
[1748874782471,11.95251001,2530.1,2529.9,5.969]
[1748874782874,3.95226673,2530.2,2529.9,5.969]
[1748874783187,0.04941066,2530.1,2529.9,5.969]
[1748874783779,3.95256916,2530.0,2529.9,1.382]
[1748874783982,12.67830518,2530.0,2529.9,1.382]
[1748874784201,12.67830518,2530.0,2529.2,0.0201]
[1748874784202,0.8286,2529.9,2529.2,0.0201]
[1748874784406,0.04941897,2529.8,2529.3,5.968]
[1748874784609,3.95304083,2529.7,2529.3,9.92165291]
[1748874784819,0.04941895,2529.6,2529.3,9.92165291]
[1748874784975,0.04941895,2529.6,2529.4,4.586]
[1748874785779,3.95303248,2529.8,2529.4,4.586]
[1748874785780,0.04941883,2529.7,2529.4,4.586]
[1748874785979,4.00249768,2529.7,2529.4,4.586]
[1748874786217,0.04941883,2529.7,2529.4,4.586]
[1748874786614,0.04941883,2529.7,2529.4,8.5394573]
[1748874786815,8.8286,2529.9,2529.4,4.586]
[1748874787128,4.74911041,2530.2,2529.7,3.95295286]
[1748874787291,0.04941227,2530.1,2529.8,4.586]
[1748874787492,3.95267571,2530.0,2529.8,4.586]
[1748874787714,0.04941159,2530.0,2529.8,4.586]
[1748874788021,4.00199641,2530.0,2529.8,4.586]
[1748874788582,3.95288165,2529.8,2529.7,5.967]
[1748874788823,4.00229753,2529.8,2529.7,5.967]
[1748874789123,8.72573602,2530.1,2529.7,9.9200379]
[1748874789465,0.87425895,2530.5,2529.8,0.0201]
[1748874789466,0.7895,2530.5,2529.8,0.0201]
[1748874789754,0.7895,2530.8,2529.8,0.0201]
[1748874789886,4.00040934,2531.0,2530.5,3.95170037]
[1748874790082,8.0,2530.9,2530.6,5.967]
[1748874790347,9.52723602,2530.7,2529.5,0.0201]
[1748874790500,0.04940516,2530.6,2530.3,3.9519962]
[1748874790698,0.04940516,2530.6,2530.2,8.55732752]
[1748874790891,8.0,2530.9,2530.2,4.6051]
[1748874790892,3.95151949,2530.7,2530.2,4.6051]
[1748874791083,4.00105326,2530.6,2530.2,4.6051]
[1748874791284,0.0493987,2530.6,2530.2,4.6051]
[1748874791489,0.0493987,2530.6,2530.2,8.55721713]
[1748874791786,4.0007881,2530.8,2530.3,3.95201687]
[1748874791986,4.0007881,2530.8,2530.4,1.382]
[1748874792189,3.95148146,2530.7,2530.4,1.382]
[1748874792521,0.04939711,2530.6,2530.4,1.382]
[1748874793702,9.54533602,2530.5,2529.5,0.0201]
[1748874793937,3.9523408,2530.2,2529.7,3.9529601]
[1748874794229,0.0494078,2530.1,2529.9,3.9526424]
[1748874794432,0.0494078,2530.3,2530.0,4.583]
[1748874794636,0.0494078,2530.3,2529.6,3.95307652]
[1748874794938,3.95264819,2530.0,2529.7,5.965]
[1748874795143,0.04941188,2529.9,2529.7,5.965]
[1748874795443,0.04941188,2530.0,2529.7,9.9180078]
[1748874795748,0.04941188,2530.0,2529.7,5.965]
[1748874795960,3.95200372,2530.4,2529.9,3.95264856]
[1748874796271,3.95213726,2530.3,2529.7,5.965]
[1748874796396,8.04940904,2530.4,2530.1,3.95233068]
[1748874796594,0.04940904,2530.4,2530.3,3.95210054]
[1748874796842,6.41392988,2530.8,2530.3,3.95209719]
[1748874796843,2.46252462,2530.8,2530.3,3.95209719]
[1748874797067,0.04940029,2530.8,2530.2,4.583]
[1748874797267,5.2119694,2531.3,2530.7,3.95142535]
[1748874797457,0.44087223,2531.2,2530.2,8.536]
[1748874797659,3.95120901,2530.9,2530.4,3.95181004]
[1748874797871,0.04939349,2530.8,2530.2,8.536]
[1748874798016,8.72573602,2531.0,2530.5,9.915737]
[1748874798218,3.95140045,2530.8,2530.5,5.964]
[1748874798420,8.72573602,2531.0,2530.6,3.95163202]
[1748874798754,8.72573602,2531.0,2530.7,3.95146946]
[1748874798962,13.61267467,2531.3,2530.8,3.95130726]
[1748874799170,3.9508653,2531.1,2530.6,3.95155244]
[1748874799334,4.00041619,2531.0,2530.7,4.582]
[1748874799530,0.04939188,2531.0,2530.7,4.582]
[1748874800246,0.04939188,2531.0,2530.7,8.5334676]
[1748874800595,0.04939185,2531.2,2531.0,3.95098254]
[1748874800806,8.72573602,2531.4,2531.1,4.581]
[1748874801011,0.7672,2531.6,2531.2,3.95058367]
[1748874801343,0.04938081,2531.5,2531.4,0.0201]
[1748874801471,0.02,2531.9,2531.8,3.94975906]
[1748874801673,0.02,2531.9,2531.8,8.52975906]
[1748874802280,0.02,2531.9,2531.8,8.54985906]
[1748874803170,0.02,2531.9,2531.8,3.96985906]
[1748874803374,0.02,2531.9,2531.8,5.961]
[1748874804008,0.02,2531.9,2531.8,3.94975906]
[1748874804171,0.02,2531.9,2531.8,9.91075906]
[1748874804615,0.02,2531.9,2531.4,3.95024918]
[1748874804872,0.7699,2531.8,2531.4,1.382]
[1748874805117,0.06937882,2531.9,2531.6,3.9500711]
[1748874805414,0.02,2531.9,2531.7,4.579]
[1748874805569,12.6953586,2531.9,2531.6,5.96]
[1748874805770,0.7967,2531.7,2531.6,5.96]
[1748874805970,4.74661507,2531.7,2531.6,1.382]
[1748874806169,6.49574831,2531.7,2531.0,3.95092409]
[1748874806516,8.72573602,2531.5,2531.1,1.382]
[1748874806738,0.04938732,2531.4,2531.1,1.382]
[1748874806904,0.39864328,2531.6,2531.5,3.95022713]
[1748874807095,0.39864328,2531.6,2531.5,8.52722713]
[1748874807422,0.02,2531.9,2531.4,3.95023834]
[1748874807639,0.02,2531.9,2531.5,4.577]
[1748874807802,0.02,2531.9,2531.7,3.94987859]
[1748874807986,0.02,2531.9,2531.5,8.52719627]
[1748874808190,0.02,2531.9,2531.5,4.577]
[1748874808931,0.02,2531.9,2531.7,3.94981387]
[1748874809227,0.02,2531.9,2531.5,4.577]
[1748874809425,0.02,2531.9,2531.8,3.94975906]
[1748874811512,0.02,2531.9,2531.8,3.96985906]
[1748874812043,0.02,2531.9,2531.8,9.91985906]
[1748874814237,0.02,2531.9,2531.8,9.89975906]
[1748874817767,3.96965585,2531.9,2531.5,1.375]
[1748874817943,9.17207756,2531.8,2531.6,4.573]
[1748874818246,9.12270161,2531.8,2531.6,4.573]
[1748874818465,3.95033092,2531.5,2530.5,8.532]
[1748874818675,3.95033092,2531.5,2530.7,1.375]
[1748874818676,8.72573602,2531.2,2530.7,1.375]
[1748874820556,4.0004327,2531.0,2530.8,4.572]
[1748874820850,3.95116361,2530.9,2530.8,4.572]
[1748874821053,3.9515512,2530.7,2530.5,8.532]
[1748874821253,1.39804901,2531.0,2530.6,5.947]
[1748874821254,8.77513324,2530.8,2530.6,5.947]
[1748874821440,8.72573602,2530.8,2530.6,9.8985601]
[1748874821648,8.72573602,2530.8,2530.6,5.947]
[1748874821954,8.72573602,2530.8,2530.6,9.89860284]
[1748874822155,0.04939604,2530.7,2530.6,1.375]
[1748874822358,4.00087191,2530.7,2530.6,4.572]
[1748874822858,0.04939604,2530.7,2530.6,4.572]
[1748874823060,4.00087191,2530.7,2530.6,4.572]
[1748874823257,0.04939604,2530.7,2530.6,4.572]
[1748874823559,5.76945405,2530.7,2530.6,4.572]
[1748874823857,5.76945405,2530.7,2530.5,9.907]
[1748874823858,3.95163202,2530.6,2530.5,9.907]
[1748874824033,4.70803202,2530.6,2530.5,14.479]
[1748874824217,0.7564,2530.6,2530.5,14.478]
[1748874824730,0.7564,2530.6,2530.5,9.907]
[1748874824942,2.67670073,2530.6,2530.5,14.478]
[1748874825371,0.04939604,2530.7,2530.5,14.478]
[1748874826530,8.72573602,2530.8,2530.6,3.95163202]
[1748874826736,8.72573602,2530.8,2530.5,18.42970882]
[1748874827038,8.72573602,2530.8,2530.5,14.478]
[1748874827238,8.72573602,2530.8,2530.6,3.95160865]
[1748874827582,8.72573602,2530.8,2530.5,18.42972532]
[1748874827884,8.72573602,2530.8,2530.5,18.4297163]
[1748874828045,8.72573602,2530.8,2530.5,14.478]
[1748874828396,8.72573602,2530.8,2530.5,18.42971677]
[1748874828535,9.49273602,2531.2,2530.5,14.478]
[1748874828731,8.0,2531.5,2530.5,14.478]
[1748874828962,8.0,2531.5,2530.8,3.95123595]
[1748874829169,3.95071497,2531.2,2530.9,4.57]
[1748874829493,3.95071543,2531.2,2530.9,4.57]
[1748874829694,3.95124021,2530.9,2530.6,1.376]
[1748874829993,0.04939353,2530.8,2530.7,4.57]
[1748874830189,4.00057807,2530.9,2530.6,1.376]
[1748874830401,0.04939344,2530.9,2530.7,4.57]
[1748874830675,4.75952268,2531.0,2530.7,4.57]
[1748874830844,2.59183347,2531.0,2530.7,4.57]
[1748874831190,9.12280599,2531.2,2530.7,4.57]
[1748874831191,8.72573602,2531.2,2530.7,4.57]
[1748874831471,8.72573602,2531.2,2530.9,3.95108223]
[1748874831659,0.04938901,2531.1,2531.0,4.57]
[1748874833173,4.00024041,2531.1,2531.0,4.57]
[1748874833544,0.04938901,2531.1,2531.0,4.57]
[1748874833738,12.6765247,2531.2,2530.7,3.95137079]
[1748874833945,4.00024914,2531.1,2530.8,5.945]
[1748874834355,4.00024914,2531.1,2530.9,5.945]
[1748874834554,0.04939191,2531.1,2530.9,5.945]
[1748874834757,1.15276559,2531.8,2531.0,5.945]
[1748874835072,0.04937724,2531.7,2531.5,3.9501185]
[1748874835287,8.62979801,2531.7,2531.6,4.569]
[1748874835497,8.58042077,2531.7,2531.6,4.569]
[1748874836989,12.53033584,2531.7,2531.6,4.569]
[1748874837179,3.95022713,2531.5,2531.4,4.568]
[1748874837377,3.95038318,2531.4,2531.3,1.376]
[1748874837578,3.95038318,2531.4,2531.3,5.944]
[1748874837802,3.95069532,2531.2,2530.6,1.376]
[1748874837985,8.58042077,2530.7,2530.6,1.376]
[1748874838310,12.53189664,2530.7,2530.6,1.376]
[1748874838869,12.53189664,2530.7,2530.5,13.099]
[1748874838870,3.95163202,2530.6,2530.5,13.099]
[1748874839065,8.58042077,2530.6,2530.5,13.099]
[1748874839261,8.58042077,2530.6,2530.5,8.532]
[1748874839262,12.69418519,2530.6,2530.5,8.532]
[1748874839466,14.35875997,2530.6,2530.5,13.099]
[1748874840109,10.40712795,2530.6,2530.5,13.099]
[1748874840466,14.35875997,2530.6,2530.5,8.532]
[1748874840817,5.6162068,2530.6,2530.5,8.532]
[1748874840971,3.9514767,2530.7,2530.5,8.532]
[1748874841169,4.00089094,2530.7,2530.6,4.566]
[1748874841590,0.8139,2530.9,2530.6,8.51756366]
[1748874841877,0.04939253,2531.0,2530.6,8.51756366]
[1748874842077,4.00041495,2531.0,2530.6,4.566]
[1748874842502,0.0493914,2531.0,2530.7,3.95140063]
[1748874842724,4.00031562,2531.1,2530.8,4.566]
[1748874843286,0.04939053,2531.1,2530.8,4.566]
[1748874843490,4.0002474,2531.1,2530.8,4.566]
[1748874844730,5.74692782,2531.1,2530.8,4.566]
[1748874845101,1.74668042,2531.1,2530.8,4.566]
[1748874845319,0.04938915,2531.1,2530.8,8.51724115]
[1748874845498,11.95041416,2531.4,2530.9,3.95116361]
[1748874845703,4.0000297,2531.3,2530.8,8.53741193]
[1748874845943,4.0000297,2531.3,2530.8,4.5861]
[1748874846119,4.0000297,2531.3,2530.8,8.53741639]
[1748874846315,5.59507174,2531.3,2530.8,8.53741639]
[1748874846641,1.64443118,2531.3,2530.8,4.5861]
[1748874846807,3.99982361,2531.4,2530.9,3.95109747]
[1748874847008,3.99982361,2531.4,2531.0,1.369]
[1748874847232,3.99982361,2531.4,2531.1,4.564]
[1748874847541,12.69333034,2531.2,2531.1,4.564]
[1748874847748,20.69333034,2531.2,2531.1,4.564]
[1748874848114,3.9508514,2531.1,2531.0,1.369]
[1748874848322,4.00024077,2531.1,2531.0,5.933]
[1748874848647,3.95116361,2530.9,2530.8,1.369]
[1748874848814,3.95116361,2530.9,2530.5,8.532]
[1748874848815,3.95163202,2530.6,2530.5,8.532]
[1748874849224,4.00103007,2530.6,2530.5,13.096]
[1748874849738,4.00103007,2530.6,2530.5,13.095]
[1748874849955,0.04939805,2530.6,2530.5,13.095]
[1748874850132,4.00088055,2530.7,2530.5,13.095]
[1748874850333,12.42538765,2531.2,2530.5,13.095]
[1748874850334,4.71528322,2531.3,2530.5,13.095]
[1748874850553,0.04939064,2531.2,2530.7,3.95138841]
[1748874850749,4.00019009,2531.2,2530.8,4.563]
[1748874851111,3.9509656,2531.1,2530.8,4.563]
[1748874851325,4.00054358,2531.0,2530.8,4.563]
[1748874851935,0.04939066,2531.0,2530.8,4.563]
[1748874852137,3.95049423,2531.4,2530.9,3.95108923]
[1748874852337,3.95055031,2531.3,2530.9,3.95108923]
[1748874852650,3.95055031,2531.3,2530.8,8.51422858]
[1748874852950,0.0493871,2531.2,2530.8,8.51422858]
[1748874854352,4.00017015,2531.2,2530.9,5.932]
[1748874854553,3.9510075,2531.0,2530.9,5.932]
[1748874854750,4.00039488,2531.0,2530.9,5.932]
[1748874854911,3.95125507,2530.9,2530.7,1.37]
[1748874855119,4.00071344,2530.8,2530.7,1.37]
[1748874855332,0.0493937,2530.8,2530.5,8.532]
[1748874855515,3.95212437,2530.3,2530.1,1.37]
[1748874855711,0.7753,2530.5,2530.1,1.37]
[1748874855712,4.00166189,2530.2,2530.1,1.37]
[1748874855940,4.00166189,2530.2,2530.1,5.931]
[1748874856144,4.00159465,2530.3,2530.1,1.37]
[1748874856357,4.00159465,2530.3,2530.1,5.931]
[1748874856555,0.04940661,2530.3,2530.1,5.931]
[1748874856859,3.95215473,2530.3,2530.1,5.931]
[1748874857752,3.95215473,2530.3,2530.1,1.37]
[1748874857753,3.95225673,2530.2,2530.1,1.37]
[1748874857927,3.95245093,2530.1,2529.9,1.37]
[1748874858134,3.95245093,2530.1,2530.0,4.56]
[1748874858457,3.95269674,2530.0,2529.9,4.56]
[1748874858657,4.00210763,2530.0,2529.9,4.56]
[1748874859051,0.04941089,2530.0,2529.9,4.56]
[1748874859361,3.95265593,2530.0,2529.9,4.56]
[1748874859840,4.00206682,2530.0,2529.9,4.56]
[1748874861248,4.00159824,2530.3,2529.9,4.56]
[1748874861422,8.0,2530.1,2529.8,1.37]
[1748874861624,4.00203901,2530.0,2529.9,4.559]
[1748874861950,2.13676134,2530.3,2529.9,4.559]
[1748874862136,0.0494097,2530.2,2529.9,4.559]
[1748874862334,0.04940535,2530.4,2529.9,4.559]
[1748874862531,0.7688,2530.9,2529.9,8.51161751]
[1748874862732,3.9513844,2530.8,2530.3,3.95199456]
[1748874862945,0.04939753,2530.8,2530.4,8.5108696]
[1748874863261,4.72003937,2530.9,2530.4,4.559]
[1748874863566,3.95155769,2530.7,2530.1,0.0201]
[1748874863862,0.04939731,2530.8,2530.5,1.37]
[1748874864049,12.72002338,2530.9,2530.6,4.559]
[1748874864363,4.00080944,2530.8,2530.6,4.559]
[1748874864659,0.0493973,2530.8,2530.6,4.559]
[1748874864855,4.00079046,2530.8,2530.6,4.559]
[1748874865200,3.95147587,2530.7,2530.6,4.559]
[1748874865474,0.0493973,2530.8,2530.6,4.559]
[1748874865674,3.95100957,2531.0,2530.6,4.559]
[1748874865836,4.00032164,2531.1,2530.6,8.51059828]
[1748874866042,4.72019979,2531.2,2530.6,8.51059828]
[1748874866043,0.7694,2531.2,2530.7,3.95137011]
[1748874866246,0.04939052,2531.2,2530.8,0.0201]
[1748874866427,3.95088696,2531.1,2530.9,4.558]
[1748874866626,4.0002745,2531.1,2530.9,4.558]
[1748874866868,3.9510075,2531.0,2530.9,4.558]
[1748874867067,0.04938754,2531.1,2530.9,4.558]
[1748874867227,4.00032693,2531.1,2530.9,4.558]
[1748874868867,0.04938754,2531.1,2530.5,1.37]
[1748874869057,3.9510717,2531.0,2530.6,4.556]
[1748874869243,0.04939224,2530.9,2530.6,8.50758963]
[1748874869441,4.00032571,2531.1,2530.6,8.50758963]
[1748874869764,4.00032571,2531.1,2530.6,8.50754551]
[1748874869968,3.95071823,2531.2,2530.7,3.95139111]
[1748874870172,4.00024583,2531.1,2530.6,8.50754041]
[1748874870464,0.04939218,2531.1,2530.7,3.95147208]
[1748874870661,4.00025519,2531.1,2530.7,3.95147208]
[1748874870862,3.9510242,2531.0,2530.6,4.556]
[1748874871170,3.9510793,2531.0,2530.6,4.556]
[1748874871492,4.00032458,2531.1,2530.6,8.50762841]
[1748874871958,0.04939218,2531.1,2530.8,3.95125744]
[1748874872178,2.25000083,2531.9,2531.0,0.0201]
[1748874872338,1.09157409,2531.9,2531.0,0.0201]
[1748874872538,3.95015355,2531.6,2531.1,3.95078593]
[1748874872750,3.95064967,2531.3,2530.8,3.95119844]
[1748874872950,3.99967711,2531.5,2531.2,1.362]
[1748874873155,3.95049709,2531.4,2531.3,4.554]
[1748874873564,4.74550832,2531.4,2531.3,4.554]
[1748874873777,0.8173,2531.3,2530.7,3.97147386]
[1748874873978,3.95069532,2531.2,2531.1,1.362]
[1748874874180,4.76793469,2531.3,2531.1,1.362]
[1748874874380,4.76793469,2531.3,2531.2,4.554]
[1748874874558,3.95074691,2531.2,2530.7,3.97148282]
[1748874874754,4.76793003,2531.3,2530.8,9.8663152]
[1748874874957,4.76793003,2531.3,2530.9,5.915]
[1748874875613,0.8173,2531.3,2530.9,5.915]
[1748874875809,3.95039487,2531.4,2531.0,3.95099102]
[1748874876011,3.99978183,2531.4,2531.0,3.95099102]
[1748874876193,3.99978183,2531.4,2530.9,9.86610014]
[1748874876518,11.99983696,2531.4,2530.9,9.86608468]
[1748874876687,3.95054097,2531.3,2530.9,9.86608468]
[1748874877188,3.95054097,2531.3,2530.9,5.915]
[1748874877685,0.8002,2531.6,2530.9,5.915]
[1748874878012,0.04938233,2531.8,2531.0,0.0201]
[1748874878209,0.04938233,2531.8,2531.0,3.97107744]
[1748874878401,3.99914796,2531.8,2531.3,3.95042367]
[1748874878715,0.04938233,2531.8,2531.4,4.552]
[1748874878911,0.02,2531.9,2531.4,8.50235772]
[1748874879097,3.96966103,2531.9,2531.4,8.50230788]
[1748874879418,0.02,2531.9,2531.4,8.50230788]
[1748874879781,3.96973333,2531.9,2531.4,8.50230788]
[1748874879988,3.96961976,2531.9,2531.5,3.95019582]
[1748874880189,3.96961976,2531.9,2531.4,8.50229158]
[1748874880389,3.99913473,2531.8,2531.4,8.50229158]
[1748874880616,4.01906551,2531.9,2531.4,8.50229158]
[1748874881239,0.06937385,2531.9,2531.5,3.95015796]
[1748874881441,4.0189918,2531.9,2531.4,8.50230857]
[1748874882114,4.0190424,2531.9,2531.4,8.50226214]
[1748874882924,0.06937385,2531.9,2531.5,3.95013363]
[1748874883138,0.06937385,2531.9,2531.4,8.50226214]
[1748874883139,4.01906405,2531.9,2531.4,8.50230255]
[1748874883341,0.94651561,2531.9,2531.1,3.9508514]
[1748874883644,3.9500711,2531.6,2531.5,1.362]
[1748874884138,3.99937814,2531.7,2531.5,1.362]
[1748874884336,0.0493794,2531.7,2531.5,1.362]
[1748874884749,0.04937711,2531.8,2531.6,4.548]
[1748874885942,3.9992008,2531.8,2531.7,4.548]
[1748874887040,0.04937711,2531.8,2531.7,4.548]
[1748874887447,3.99913617,2531.8,2531.7,4.548]
[1748874887805,0.04937711,2531.8,2531.7,4.548]
[1748874888209,3.99920955,2531.8,2531.7,4.546]
[1748874888467,0.04937711,2531.8,2531.7,4.546]
[1748874889021,3.99913617,2531.8,2531.7,4.546]
[1748874890317,0.04937711,2531.8,2531.7,4.546]
[1748874890554,0.04937711,2531.8,2531.7,8.49591507]
[1748874890760,0.02,2531.9,2531.8,3.94975906]
[1748874891051,0.02,2531.9,2531.8,3.96985906]
[1748874891758,0.02,2531.9,2531.8,9.87485906]
[1748874892504,0.02,2531.9,2531.8,18.27629974]
[1748874895845,0.02,2531.9,2531.8,18.82629974]
[1748874896081,0.02,2531.9,2531.8,27.41701491]
[1748874897245,0.02,2532.9,2532.8,3.94819962]
[1748874897664,0.02,2532.9,2532.8,9.85019962]
[1748874897888,0.02,2533.9,2533.8,3.9466414]
[1748874898068,0.758,2535.7,2534.8,3.96518442]
[1748874898250,0.758,2535.7,2534.8,9.86618442]
[1748874898551,0.02,2535.9,2534.8,26.45689959]
[1748874898733,0.02,2535.9,2535.5,0.0201]
[1748874898936,0.02,2535.9,2535.5,4.54]
[1748874899779,0.02,2535.9,2535.5,8.48389031]
[1748874899985,0.02,2535.9,2535.6,1.361]
[1748874899986,3.94368418,2535.7,2535.6,1.361]
[1748874900152,0.7883,2535.5,2534.4,0.0201]
[1748874900350,0.04931277,2535.4,2534.5,5.9]
[1748874900678,1.66011128,2535.7,2534.5,1.361]
[1748874900881,0.8331,2535.4,2533.9,8.5481]
[1748874901033,8.59071517,2535.2,2534.0,5.9]
[1748874901234,0.04932054,2535.1,2534.8,3.94498747]
[1748874901436,0.04931282,2535.3,2534.9,1.361]
[1748874901653,0.7787,2535.7,2535.4,3.94406945]
[1748874901996,0.88480075,2535.7,2535.6,3.94383972]
[1748874902205,0.02,2535.9,2535.8,3.94352866]
[1748874902499,0.02,2535.9,2535.8,5.29552866]
[1748874903598,0.02,2535.9,2535.3,0.0201]
[1748874903795,0.8245,2535.8,2535.5,3.94388488]
[1748874904096,0.02,2535.9,2534.8,3.94508442]
[1748874904097,0.02,2535.9,2535.6,5.29583741]
[1748874904277,0.02,2535.9,2535.7,1.352]
[1748874905063,0.02,2535.9,2535.8,3.94352866]
[1748874907199,0.02,2535.9,2535.8,3.96362866]
[1748874907399,0.02,2535.9,2535.8,12.51362866]
[1748874907756,0.02,2535.9,2535.8,11.96362866]
[1748874908004,0.02,2535.9,2535.8,17.84662866]
[1748874908200,0.02,2535.9,2535.8,13.31462866]
[1748874908499,0.02,2535.9,2535.8,17.84662866]
[1748874909172,0.02,2535.9,2535.8,17.84562866]
[1748874909697,0.02,2535.9,2535.8,18.39562866]
[1748874910061,0.02,2536.9,2536.8,3.94197414]
[1748874910262,0.02,2536.9,2536.8,9.82397414]
[1748874910963,0.02,2536.9,2536.8,10.37397414]
[1748874911565,0.02,2536.9,2536.8,18.37397414]
[1748874911957,0.02,2536.9,2536.8,18.87397414]
[1748874912206,0.02,2536.9,2536.8,12.44197414]
[1748874912502,0.02,2536.9,2536.8,18.32197414]
[1748874913091,0.00614,2536.9,2536.8,18.32197414]
[1748874914015,0.00614,2536.9,2536.8,18.87197414]
[1748874915028,0.00614,2536.9,2536.8,10.31997414]
[1748874915247,0.00614,2536.9,2536.8,4.44197414]
[1748874915552,0.00614,2536.9,2536.8,10.31997414]
[1748874916047,0.00614,2536.9,2536.8,0.5]
[1748874916346,0.00614,2536.9,2536.8,10.31797414]
[1748874916547,0.00614,2536.9,2536.8,10.33807414]
[1748874916829,0.00614,2536.9,2536.8,18.88807414]
[1748874918024,0.00614,2536.9,2536.8,10.88807414]
[1748874918429,0.00614,2536.9,2536.8,10.33807414]
[1748874919411,0.00614,2536.9,2536.8,10.33607414]
[1748874919613,0.00614,2536.9,2536.8,4.46207414]
[1748874919814,0.00614,2536.9,2536.8,4.44197414]
[1748874920013,0.00614,2536.9,2536.8,10.31497414]
[1748874920231,0.00614,2536.9,2536.8,6.373]
[1748874920427,0.00614,2536.9,2536.8,10.31497414]
[1748874921934,0.00614,2536.9,2536.8,4.44197414]
[1748874922094,0.00614,2536.9,2536.8,10.31497414]
[1748874922819,0.00614,2536.9,2536.8,4.44197414]
[1748874923017,0.00614,2536.9,2536.8,10.31397414]
[1748874924114,0.00614,2536.9,2536.8,10.31297414]
[1748874924638,0.00614,2536.9,2536.8,10.33307414]
[1748874924838,0.00614,2536.9,2536.8,18.70506612]
[1748874925060,0.00614,2536.9,2536.8,19.25506612]
[1748874925805,0.00614,2536.9,2536.8,12.83406612]
[1748874926045,0.00614,2536.9,2536.8,18.70506612]
[1748874926264,0.00614,2536.9,2536.8,18.33307414]
[1748874926549,0.00614,2536.9,2536.8,18.7057896]
[1748874927200,0.00614,2536.9,2536.8,12.8347896]
[1748874927405,0.00614,2536.9,2536.8,18.7047896]
[1748874927842,0.00614,2536.9,2536.8,5.6847896]
[1748874928150,0.00614,2536.9,2536.8,10.18651667]
[1748874928448,0.00614,2536.9,2536.8,0.37454253]
[1748874928653,0.00614,2536.9,2536.1,0.0201]
[1748874928654,3.94204989,2536.8,2536.6,1.35]
[1748874928810,4.78460531,2536.7,2536.6,0.1265625]
[1748874929149,4.78460531,2536.7,2536.6,0.45565759]
[1748874929349,0.7932,2536.6,2536.2,1.35]
[1748874929547,3.99178221,2536.5,2536.2,1.35]
[1748874929749,0.7932,2536.6,2536.2,1.35]
[1748874929950,4.78483975,2536.6,2536.2,1.35]
[1748874930251,5.74479043,2536.6,2536.3,1.35]
[1748874930409,1.80249599,2536.6,2536.3,1.35]
[1748874930614,1.80249599,2536.6,2536.5,3.94244037]
[1748874930615,0.7932,2536.6,2536.5,3.94244037]
[1748874930925,0.05541645,2536.9,2536.3,1.35]
[1748874931154,0.00614,2536.9,2536.5,3.9423097]
[1748874931366,0.00614,2536.9,2536.6,0.37509401]
[1748874931660,0.3369861,2536.9,2536.6,3.94222115]
[1748874931948,0.3369861,2536.9,2536.7,5.869]
[1748874932118,0.38626034,2536.9,2536.7,5.869]
[1748874932326,0.84898053,2536.9,2536.7,5.869]
[1748874932675,0.3369861,2536.9,2536.7,5.869]
[1748874932959,4.27881711,2536.9,2536.7,5.869]